[Event "EYCC Girls-U18 2019"]
[Site "Bratislava"]
[Date "2019.08.06"]
[Round "5.11"]
[White "Ciocan, Maria-Alexandra"]
[Black "Radeva, Viktoria"]
[Result "0-1"]
[ECO "B40"]
[WhiteElo "2062"]
[BlackElo "2247"]
[Annotator "NA"]
[PlyCount "122"]
[EventDate "2019.08.02"]
[EventType "swiss"]
[EventCountry "SVK"]
[SourceTitle "playchess.com"]
[Source "ChessBase"]
[SourceQuality "1"]
[TimeControl "40/5400+30:1800+30"]

1. e4 {[%emt 0:00:00]} c5 {[%emt 0:00:00]} 2. Nf3 {[%emt 0:00:00]} e6 {[%emt 0:00:00]} 3. d3 {[%emt 0:00:00]} Nc6 {[%emt 0:00:00]} 4. g3 {[%emt 0:00:00]} d5 {[%emt 0:00:02]} 5. Nbd2 {[%emt 0:00:00]} Nf6 {[%emt 0:00:15]} 6. Bg2 {[%emt 0:00:05]} Be7 {[%emt 0:00:06]} 7. O-O {[%emt 0:00:07]} h6 {[%emt 0:00:04]} 8. Re1 {[%emt 0:01:46]} Rb8 {[%emt 0:01:23]} 9. h4 {[%emt 0:19:46]} b5 {[%emt 0:16:20]} 10. e5 {[%emt 0:06:40]} Nd7 {[%emt 0:00:18]} 11. c4 {[%emt 0:00:14]} bxc4 {[%emt 0:05:03]} 12. dxc4 {[%emt 0:00:34]} d4 {[%emt 0:03:46]} 13. Ne4 {[%emt 0:10:38]} Qc7 {[%emt 0:20:51]} 14. Nd6+ {[%emt 0:07:46]} Bxd6 {[%emt 0:02:05]} 15. exd6 {[%emt 0:00:04]} Qxd6 {[%emt 0:04:02]} 16. Bf4 {[%emt 0:01:35]} e5 {[%emt 0:01:42]} 17. Nxe5 {[%emt 0:11:12]} Ncxe5 {[%emt 0:00:17]} 18. Qh5 {[%emt 0:16:46]} O-O {[%emt 0:10:33]} 19. Rxe5 {[%emt 0:02:46]} g6 {[%emt 0:08:35]} 20. Qe2 {[%emt 0:05:50]} Nxe5 {[%emt 0:00:15]} 21. Bxe5 {[%emt 0:00:04]} Qe7 {[%emt 0:01:09]} 22. Re1 {[%emt 0:00:28]} Rb6 {[%emt 0:00:50]} 23. Bd5 {[%emt 0:03:15]} Re8 {[%emt 0:04:14]} 24. Qd2 {[%emt 0:01:06]} Kh7 {[%emt 0:01:41]} 25. Re4 {[%emt 0:04:54]} Qf8 {[%emt 0:02:17]} 26. Rf4 {[%emt 0:04:01]} Be6 {[%emt 0:05:35]} 27. Bc7 {[%emt 0:02:52]} Ra6 {[%emt 0:00:08]} 28. Be4 {[%emt 0:00:26]} Qe7 {[%emt 0:01:16]} 29. Ba5 {[%emt 0:00:50]} Bxc4 {[%emt 0:01:01]} 30. b3 {[%emt 0:00:03]} Re6 {[%emt 0:02:46]} 31. f3 {[%emt 0:00:54]} Ba6 {[%emt 0:05:18]} 32. h5 {[%emt 0:00:22]} Bb7 {[%emt 0:01:07]} 33. hxg6+ {[%emt 0:00:23]} fxg6 {[%emt 0:00:21]} 34. Rh4 {[%emt 0:00:25]} Qg7 {[%emt 0:01:36]} 35. Bxb7 {[%emt 0:00:30]} Re2 {[%emt 0:00:03]} 36. Qc1 {[%emt 0:00:56]} d3 {[%emt 0:01:33]} 37. Be4 {[%emt 0:00:14]} d2 {[%emt 0:00:57]} 38. Bxd2 {[%emt 0:00:54]} Qd4+ {[%emt 0:00:01]} 39. Be3 Qxe3+ {[%emt 0:00:39]} 40. Qxe3 {[%emt 0:00:00]} Rxe3 {[%emt 0:00:00]} 41. Kf2 {[%emt 0:03:06]} Rc3 {[%emt 0:01:21]} 42. Rh1 {[%emt 0:05:15]} Rd8 {[%emt 0:02:26]} 43. Ke2 {[%emt 0:00:11]} c4 {[%emt 0:00:57]} 44. bxc4 {[%emt 0:00:11]} Rxc4 {[%emt 0:00:17]} 45. Rb1 {[%emt 0:01:08]} Rcd4 {[%emt 0:00:29]} 46. Rb2 {[%emt 0:00:55]} Kg7 {[%emt 0:01:06]} 47. Ke3 {[%emt 0:00:33]} Kf6 {[%emt 0:03:06]} 48. Rc2 {[%emt 0:01:17]} R4d6 {[%emt 0:00:49]} 49. Rc7 {[%emt 0:02:01]} Ra6 {[%emt 0:00:43]} 50. Rc2 {[%emt 0:01:00]} Ra3+ {[%emt 0:01:17]} 51. Ke2 {[%emt 0:02:17]} Rd6 {[%emt 0:00:11]} 52. Rb2 {[%emt 0:01:26]} Ra5 {[%emt 0:01:19]} 53. Ke3 {[%emt 0:01:48]} Rda6 {[%emt 0:00:57]} 54. Rh2 {[%emt 0:00:57]} h5 {[%emt 0:01:29]} 55. Bb1 {[%emt 0:00:12]} Ra3+ {[%emt 0:00:31]} 56. Ke4 {[%emt 0:04:30]} R6a4+ {[%emt 0:00:09]} 57. Kd5 {[%emt 0:00:07]} Rxf3 {[%emt 0:00:30]} 58. Rc2 {[%emt 0:00:22]} Rf5+ {[%emt 0:02:30]} 59. Kd6 {[%emt 0:00:12]} Rf1 {[%emt 0:01:09]} 60. Rb2 {[%emt 0:00:15]} Ra6+ {[%emt 0:00:22]} 61. Kd5 {[%emt 0:00:40]} Rb6 {[%emt 0:00:16]} 0-1

[Event "EYCC Girls-U18 2019"]
[Site "Bratislava"]
[Date "2019.08.06"]
[Round "5.12"]
[White "Kostecka, Marika"]
[Black "Nestorovic, Katarina"]
[Result "0-1"]
[ECO "B80"]
[WhiteElo "1924"]
[BlackElo "2179"]
[Annotator "NA"]
[PlyCount "72"]
[EventDate "2019.08.02"]
[EventType "swiss"]
[EventCountry "SVK"]
[SourceTitle "playchess.com"]
[Source "ChessBase"]
[SourceQuality "1"]
[TimeControl "40/5400+30:1800+30"]

1. e4 {[%emt 0:00:00]} c5 {[%emt 0:00:00]} 2. Nf3 {[%emt 0:00:00]} e6 {[%emt 0:00:00]} 3. d4 {[%emt 0:00:00]} cxd4 {[%emt 0:00:00]} 4. Nxd4 {[%emt 0:00:00]} Nf6 {[%emt 0:00:00]} 5. Nc3 {[%emt 0:00:00]} d6 {[%emt 0:00:03]} 6. Be3 {[%emt 0:00:08]} a6 {[%emt 0:00:52]} 7. f3 {[%emt 0:00:11]} b5 {[%emt 0:02:38]} 8. Qd2 {[%emt 0:01:03]} Nbd7 {[%emt 0:03:04]} 9. g4 {[%emt 0:00:24]} b4 {[%emt 0:01:32]} 10. Nce2 {[%emt 0:14:44]} h6 {[%emt 0:04:09]} 11. O-O-O {[%emt 0:04:48]} Qc7 {[%emt 0:00:25]} 12. h4 {[%emt 0:01:15]} d5 {[%emt 0:01:31]} 13. Bg2 {[%emt 0:24:20]} dxe4 {[%emt 0:05:54]} 14. g5 {[%emt 0:00:05]} Nd5 {[%emt 0:16:22]} 15. g6 {[%emt 0:02:29]} Ne5 {[%emt 0:04:31]} 16. gxf7+ {[%emt 0:04:34]} Qxf7 {[%emt 0:02:09]} 17. Nf5 {[%emt 0:09:33]} exf5 {[%emt 0:11:53]} 18. Qxd5 {[%emt 0:05:28]} Qxd5 {[%emt 0:00:25]} 19. Rxd5 {[%emt 0:00:09]} Nc4 {[%emt 0:00:14]} 20. Bf4 {[%emt 0:03:52]} Bb7 {[%emt 0:03:53]} 21. Rd4 {[%emt 0:01:06]} exf3 {[%emt 0:01:38]} 22. Ng3 {[%emt 0:07:44]} fxg2 {[%emt 0:12:00]} 23. Re1+ {[%emt 0:00:04]} Kf7 {[%emt 0:02:21]} 24. Rxc4 {[%emt 0:00:03]} Rc8 {[%emt 0:00:38]} 25. Rxc8 Bxc8 {[%emt 0:02:43]} 26. Rg1 {[%emt 0:00:42]} Bb7 {[%emt 0:01:36]} 27. Nxf5 {[%emt 0:01:00]} Kf6 {[%emt 0:03:23]} 28. Nd4 {[%emt 0:06:46]} Bc5 {[%emt 0:02:55]} 29. Be3 {[%emt 0:01:11]} Re8 {[%emt 0:00:38]} 30. Kd2 {[%emt 0:02:29]} Re4 {[%emt 0:02:40]} 31. c3 {[%emt 0:04:23]} Rxh4 {[%emt 0:00:44]} 32. Kd3 {[%emt 0:01:33]} bxc3 {[%emt 0:02:01]} 33. bxc3 {[%emt 0:00:36]} Rh1 {[%emt 0:01:12]} 34. Ne2 {[%emt 0:03:37]} Bxe3 {[%emt 0:00:59]} 35. Kxe3 {[%emt 0:00:06]} h5 {[%emt 0:00:53]} 36. Kf2 {[%emt 0:00:38]} h4 {[%emt 0:00:40]} 0-1

[Event "EYCC Girls-U18 2019"]
[Site "Bratislava"]
[Date "2019.08.06"]
[Round "5.13"]
[White "Kochukova, Anna"]
[Black "Verbin, Valentina"]
[Result "1-0"]
[ECO "B53"]
[WhiteElo "2148"]
[BlackElo "1958"]
[Annotator "NA"]
[PlyCount "77"]
[EventDate "2019.08.02"]
[EventType "swiss"]
[EventCountry "SVK"]
[SourceTitle "playchess.com"]
[Source "ChessBase"]
[SourceQuality "1"]
[TimeControl "40/5400+30:1800+30"]

1. e4 {[%emt 0:00:00]} c5 {[%emt 0:00:00]} 2. Nf3 {[%emt 0:00:00]} d6 {[%emt 0:00:00]} 3. d4 {[%emt 0:00:01]} cxd4 {[%emt 0:00:00]} 4. Qxd4 {[%emt 0:00:11]} Bd7 {[%emt 0:00:00]} 5. c4 {[%emt 0:01:09]} Nc6 {[%emt 0:00:00]} 6. Qe3 {[%emt 0:03:31]} Nf6 {[%emt 0:01:23]} 7. h3 {[%emt 0:00:51]} g6 {[%emt 0:01:13]} 8. Nc3 {[%emt 0:00:45]} Bg7 {[%emt 0:00:37]} 9. Bd3 {[%emt 0:04:25]} Rc8 {[%emt 0:02:55]} 10. Bd2 {[%emt 0:03:15]} Nb4 {[%emt 0:02:36]} 11. O-O {[%emt 0:03:29]} Nxd3 {[%emt 0:00:35]} 12. Qxd3 {[%emt 0:00:03]} a6 {[%emt 0:04:22]} 13. Rfe1 {[%emt 0:09:41]} O-O {[%emt 0:02:26]} 14. Nd4 {[%emt 0:03:19]} Qc7 {[%emt 0:09:08]} 15. b3 {[%emt 0:00:29]} Bc6 {[%emt 0:00:06]} 16. Rac1 {[%emt 0:02:56]} Nd7 {[%emt 0:04:37]} 17. Bg5 {[%emt 0:02:59]} Nc5 {[%emt 0:02:04]} 18. Qd2 {[%emt 0:00:56]} Bxd4 {[%emt 0:07:15]} 19. Qxd4 {[%emt 0:00:02]} Ne6 {[%emt 0:00:05]} 20. Qe3 {[%emt 0:00:38]} Nxg5 {[%emt 0:00:14]} 21. Qxg5 {[%emt 0:00:02]} Qd7 {[%emt 0:05:49]} 22. Rcd1 {[%emt 0:05:16]} Qe6 {[%emt 0:18:57]} 23. a4 {[%emt 0:19:00]} b6 {[%emt 0:06:01]} 24. Nd5 {[%emt 0:04:16]} f6 {[%emt 0:02:12]} 25. Qe3 {[%emt 0:00:53]} b5 {[%emt 0:01:25]} 26. Qa7 {[%emt 0:05:00]} Bd7 {[%emt 0:09:20]} 27. Nf4 {[%emt 0:09:27]} Qe5 {[%emt 0:00:45]} 28. Qxd7 {[%emt 0:02:23]} Qxf4 {[%emt 0:00:04]} 29. Qxe7 {[%emt 0:02:35]} bxc4 {[%emt 0:01:20]} 30. bxc4 {[%emt 0:01:32]} Rfe8 {[%emt 0:03:22]} 31. Qb7 {[%emt 0:07:35]} a5 {[%emt 0:04:50]} 32. Rb1 {[%emt 0:00:30]} Rc5 {[%emt 0:02:07]} 33. Qd7 {[%emt 0:01:26]} Rf8 {[%emt 0:00:30]} 34. Rb7 {[%emt 0:02:13]} Qh6 {[%emt 0:00:06]} 35. Qxd6 {[%emt 0:00:50]} Rg5 {[%emt 0:00:27]} 36. Qd7 {[%emt 0:02:39]} f5 37. e5 f4 {[%emt 0:03:12]} 38. f3 {[%emt 0:02:48]} Rgf5 39. e6 {[%emt 0:00:24]} 1-0

[Event "EYCC Girls-U18 2019"]
[Site "Bratislava"]
[Date "2019.08.06"]
[Round "5.14"]
[White "Nilssen, Ellen Fredericia"]
[Black "Buchta, Agnieszka"]
[Result "1-0"]
[ECO "A53"]
[WhiteElo "2155"]
[BlackElo "1818"]
[Annotator "NA"]
[PlyCount "107"]
[EventDate "2019.08.02"]
[EventType "swiss"]
[EventCountry "SVK"]
[SourceTitle "playchess.com"]
[Source "ChessBase"]
[SourceQuality "1"]
[TimeControl "40/5400+30:1800+30"]

1. d4 {[%emt 0:00:00]} Nf6 {[%emt 0:00:00]} 2. c4 {[%emt 0:00:00]} d6 {[%emt 0:00:00]} 3. Nc3 {[%emt 0:01:36]} Nbd7 {[%emt 0:00:38]} 4. e4 {[%emt 0:02:24]} e5 {[%emt 0:03:08]} 5. d5 {[%emt 0:00:14]} Nc5 {[%emt 0:00:43]} 6. Bd3 {[%emt 0:04:21]} a5 {[%emt 0:00:48]} 7. Nge2 {[%emt 0:01:19]} Be7 {[%emt 0:04:19]} 8. f3 {[%emt 0:00:28]} h6 {[%emt 0:01:29]} 9. Be3 {[%emt 0:02:29]} Nh7 {[%emt 0:08:46]} 10. Bc2 {[%emt 0:07:38]} O-O {[%emt 0:07:24]} 11. O-O {[%emt 0:02:52]} Bg5 {[%emt 0:05:48]} 12. f4 {[%emt 0:03:55]} exf4 {[%emt 0:08:00]} 13. Bxc5 {[%emt 0:01:19]} dxc5 {[%emt 0:02:39]} 14. Qd3 {[%emt 0:07:47]} Qe7 {[%emt 0:15:42]} 15. Nxf4 {[%emt 0:06:18]} Bxf4 {[%emt 0:09:40]} 16. Rxf4 {[%emt 0:00:19]} Qe5 {[%emt 0:01:35]} 17. Raf1 {[%emt 0:00:07]} Ra6 {[%emt 0:06:46]} 18. Qe3 {[%emt 0:04:32]} Rg6 {[%emt 0:04:21]} 19. Kh1 {[%emt 0:06:59]} b6 {[%emt 0:01:14]} 20. b3 {[%emt 0:04:55]} Nf6 {[%emt 0:00:47]} 21. Nb1 {[%emt 0:05:17]} Ng4 {[%emt 0:07:56]} 22. Qe2 {[%emt 0:00:59]} Rf6 {[%emt 0:01:34]} 23. g3 {[%emt 0:02:04]} g5 {[%emt 0:01:43]} 24. Rxf6 {[%emt 0:04:46]} Nxf6 {[%emt 0:00:03]} 25. Nd2 {[%emt 0:00:24]} g4 {[%emt 0:01:32]} 26. Kg2 {[%emt 0:09:41]} Kg7 {[%emt 0:00:26]} 27. Qe3 {[%emt 0:02:23]} Re8 {[%emt 0:01:35]} 28. Re1 {[%emt 0:01:56]} Re7 {[%emt 0:00:47]} 29. a3 {[%emt 0:01:33]} Nd7 {[%emt 0:04:12]} 30. Rf1 {[%emt 0:03:17]} Nf8 {[%emt 0:00:48]} 31. b4 {[%emt 0:00:29]} axb4 {[%emt 0:00:22]} 32. axb4 {[%emt 0:00:06]} cxb4 {[%emt 0:00:34]} 33. c5 {[%emt 0:00:19]} bxc5 {[%emt 0:00:34]} 34. Qxc5 {[%emt 0:01:10]} Ng6 {[%emt 0:00:34]} 35. Qxb4 {[%emt 0:02:04]} Qd6 {[%emt 0:00:30]} 36. Qd4+ {[%emt 0:00:55]} Qe5 {[%emt 0:00:28]} 37. Qd3 {[%emt 0:00:56]} Qh5 {[%emt 0:00:32]} 38. Kg1 {[%emt 0:00:48]} Ne5 {[%emt 0:00:25]} 39. Qa3 {[%emt 0:00:50]} Qg5 {[%emt 0:00:33]} 40. Rf2 {[%emt 0:00:00]} Re8 {[%emt 0:00:00]} 41. Qc3 {[%emt 0:05:38]} Qe7 {[%emt 0:10:35]} 42. Nb3 {[%emt 0:00:56]} f6 {[%emt 0:10:24]} 43. Nd4 {[%emt 0:00:17]} Rf8 {[%emt 0:01:19]} 44. Ba4 {[%emt 0:03:31]} Rf7 {[%emt 0:03:32]} 45. Rc2 {[%emt 0:02:43]} Kg6 {[%emt 0:01:26]} 46. Kg2 {[%emt 0:03:27]} Ba6 {[%emt 0:02:39]} 47. Ne6 {[%emt 0:03:20]} Bc8 {[%emt 0:02:40]} 48. Nxc7 {[%emt 0:01:25]} f5 {[%emt 0:00:20]} 49. Be8 {[%emt 0:00:19]} fxe4 {[%emt 0:00:54]} 50. Qe3 {[%emt 0:03:53]} Bf5 {[%emt 0:00:50]} 51. Bxf7+ {[%emt 0:01:04]} Qxf7 {[%emt 0:00:52]} 52. Ra2 {[%emt 0:02:06]} Nc4 {[%emt 0:00:40]} 53. Ra6+ {[%emt 0:00:11]} Kg7 {[%emt 0:00:52]} 54. Qxh6+ {[%emt 0:00:07]} 1-0

[Event "EYCC Girls-U18 2019"]
[Site "Bratislava"]
[Date "2019.08.06"]
[Round "5.15"]
[White "Koljevic, Nikolina"]
[Black "Maksimovic, Masa"]
[Result "1/2-1/2"]
[ECO "B06"]
[WhiteElo "1960"]
[BlackElo "2102"]
[Annotator "NA"]
[PlyCount "104"]
[EventDate "2019.08.02"]
[EventType "swiss"]
[EventCountry "SVK"]
[SourceTitle "playchess.com"]
[Source "ChessBase"]
[SourceQuality "1"]
[TimeControl "40/5400+30:1800+30"]

1. e4 {[%emt 0:00:00]} g6 {[%emt 0:00:00]} 2. d4 {[%emt 0:00:00]} Bg7 {[%emt 0:00:00]} 3. Nc3 {[%emt 0:00:00]} d6 {[%emt 0:00:00]} 4. Be3 {[%emt 0:00:00]} a6 {[%emt 0:00:00]} 5. Qd2 {[%emt 0:00:59]} b5 {[%emt 0:00:01]} 6. f3 {[%emt 0:00:21]} Bb7 {[%emt 0:01:20]} 7. g4 {[%emt 0:02:43]} h5 {[%emt 0:02:15]} 8. g5 {[%emt 0:00:22]} Nd7 {[%emt 0:00:14]} 9. h4 {[%emt 0:06:04]} e6 {[%emt 0:01:09]} 10. Bg2 {[%emt 0:04:13]} Ne7 {[%emt 0:00:45]} 11. Rd1 {[%emt 0:04:13]} Rc8 {[%emt 0:09:09]} 12. Nh3 {[%emt 0:02:52]} Nb6 {[%emt 0:09:11]} 13. b3 {[%emt 0:00:31]} d5 {[%emt 0:04:21]} 14. O-O {[%emt 0:05:37]} O-O {[%emt 0:00:54]} 15. Ne2 {[%emt 0:03:27]} Qd7 {[%emt 0:06:48]} 16. Ng3 {[%emt 0:02:55]} Rcd8 {[%emt 0:00:22]} 17. e5 {[%emt 0:07:36]} Rfe8 {[%emt 0:04:15]} 18. Nf4 {[%emt 0:03:22]} Nf5 {[%emt 0:00:26]} 19. Nxf5 {[%emt 0:00:23]} exf5 {[%emt 0:00:09]} 20. Nd3 {[%emt 0:04:01]} Qc8 {[%emt 0:00:46]} 21. Nc5 {[%emt 0:01:08]} Nd7 {[%emt 0:00:54]} 22. Nxd7 {[%emt 0:00:26]} Qxd7 {[%emt 0:00:15]} 23. b4 {[%emt 0:04:13]} Ra8 {[%emt 0:00:39]} 24. Ra1 {[%emt 0:04:05]} Ra7 {[%emt 0:03:47]} 25. c3 {[%emt 0:04:05]} a5 {[%emt 0:04:57]} 26. a3 {[%emt 0:00:16]} Rea8 {[%emt 0:01:16]} 27. Qb2 {[%emt 0:00:18]} Bf8 {[%emt 0:01:44]} 28. f4 {[%emt 0:02:59]} Qc6 {[%emt 0:06:33]} 29. Bd2 {[%emt 0:01:21]} Qb6 {[%emt 0:06:19]} 30. Kh2 {[%emt 0:03:50]} Ra6 {[%emt 0:02:21]} 31. Rf3 {[%emt 0:04:26]} Qa7 {[%emt 0:03:43]} 32. Rd3 {[%emt 0:01:41]} c6 {[%emt 0:00:47]} 33. Kh1 {[%emt 0:02:19]} Be7 {[%emt 0:04:06]} 34. Kh2 {[%emt 0:01:36]} Bc8 {[%emt 0:04:14]} 35. Kh1 {[%emt 0:03:48]} Be6 {[%emt 0:00:52]} 36. Kh2 {[%emt 0:00:37]} Bd8 {[%emt 0:01:50]} 37. Bc1 {[%emt 0:00:31]} Be7 {[%emt 0:01:36]} 38. Qd2 {[%emt 0:02:01]} Qb8 {[%emt 0:00:15]} 39. Qe1 {[%emt 0:02:45]} R8a7 {[%emt 0:01:30]} 40. Bb2 {[%emt 0:00:00]} Qf8 {[%emt 0:00:00]} 41. Rdd1 {[%emt 0:01:02]} Qa8 {[%emt 0:02:53]} 42. Kh1 {[%emt 0:00:37]} Kf8 {[%emt 0:04:28]} 43. Kh2 {[%emt 0:00:51]} Kg7 {[%emt 0:03:09]} 44. Kh1 {[%emt 0:00:51]} Bd7 {[%emt 0:05:29]} 45. Kh2 {[%emt 0:00:25]} axb4 {[%emt 0:00:22]} 46. axb4 {[%emt 0:00:20]} Ra2 {[%emt 0:02:10]} 47. Rxa2 {[%emt 0:00:26]} Rxa2 {[%emt 0:00:04]} 48. Ra1 {[%emt 0:00:14]} Be8 {[%emt 0:01:34]} 49. Qb1 {[%emt 0:01:41]} Ra4 {[%emt 0:00:24]} 50. Bf3 {[%emt 0:00:25]} Rxa1 {[%emt 0:00:52]} 51. Qxa1 {[%emt 0:00:05]} Qxa1 {[%emt 0:00:05]} 52. Bxa1 {[%emt 0:00:02]} Bd7 {[%emt 0:00:06]} 1/2-1/2

[Event "EYCC Girls-U18 2019"]
[Site "Bratislava"]
[Date "2019.08.06"]
[Round "5.16"]
[White "Koridze, Lile"]
[Black "Palma, Maria"]
[Result "0-1"]
[ECO "E04"]
[WhiteElo "1950"]
[BlackElo "2137"]
[Annotator "NA"]
[PlyCount "66"]
[EventDate "2019.08.02"]
[EventType "swiss"]
[EventCountry "SVK"]
[SourceTitle "playchess.com"]
[Source "ChessBase"]
[SourceQuality "1"]
[TimeControl "40/5400+30:1800+30"]

1. d4 {[%emt 0:00:00]} d5 {[%emt 0:00:00]} 2. c4 {[%emt 0:00:00]} e6 {[%emt 0:00:00]} 3. g3 {[%emt 0:00:00]} Nf6 {[%emt 0:00:27]} 4. Bg2 {[%emt 0:00:00]} dxc4 {[%emt 0:06:30]} 5. Nf3 {[%emt 0:00:07]} Bb4+ {[%emt 0:00:51]} 6. Bd2 {[%emt 0:00:18]} a5 {[%emt 0:00:30]} 7. O-O {[%emt 0:00:49]} O-O {[%emt 0:00:34]} 8. Bg5 {[%emt 0:00:20]} h6 {[%emt 0:01:52]} 9. Bxf6 {[%emt 0:00:23]} Qxf6 {[%emt 0:00:07]} 10. Qc2 {[%emt 0:02:22]} b5 {[%emt 0:07:06]} 11. a4 {[%emt 0:03:16]} c6 {[%emt 0:03:17]} 12. axb5 {[%emt 0:03:02]} cxb5 {[%emt 0:01:23]} 13. Ng5 {[%emt 0:00:58]} hxg5 {[%emt 0:00:34]} 14. Bxa8 {[%emt 0:00:05]} Qxd4 {[%emt 0:01:11]} 15. Nc3 {[%emt 0:02:38]} Qb6 {[%emt 0:04:29]} 16. Bg2 {[%emt 0:08:21]} Nc6 {[%emt 0:04:55]} 17. e3 {[%emt 0:11:21]} Bb7 {[%emt 0:07:36]} 18. Ne4 {[%emt 0:04:14]} Be7 {[%emt 0:02:38]} 19. Rfd1 {[%emt 0:09:59]} Nb4 {[%emt 0:08:09]} 20. Qe2 {[%emt 0:02:36]} Nd3 {[%emt 0:09:04]} 21. Rxd3 {[%emt 0:15:57]} cxd3 {[%emt 0:00:08]} 22. Qxd3 {[%emt 0:00:03]} Rd8 {[%emt 0:07:08]} 23. Qb3 {[%emt 0:04:36]} Bd5 {[%emt 0:02:40]} 24. Qc2 {[%emt 0:02:35]} Qb7 {[%emt 0:03:38]} 25. Rd1 {[%emt 0:05:01]} Rc8 {[%emt 0:09:03]} 26. Qb1 {[%emt 0:01:40]} b4 {[%emt 0:01:14]} 27. g4 {[%emt 0:02:05]} Qc6 {[%emt 0:01:55]} 28. Bf3 {[%emt 0:03:45]} a4 {[%emt 0:01:59]} 29. Kg2 {[%emt 0:04:18]} f5 {[%emt 0:05:22]} 30. Rxd5 {[%emt 0:09:39]} fxe4 {[%emt 0:03:34]} 31. Qxe4 {[%emt 0:00:14]} Qxd5 {[%emt 0:00:35]} 32. Qg6 {[%emt 0:00:13]} Qe5 {[%emt 0:00:34]} 33. Bb7 {[%emt 0:01:06]} Rd8 {[%emt 0:00:46]} 0-1

[Event "EYCC Girls-U18 2019"]
[Site "Bratislava"]
[Date "2019.08.06"]
[Round "5.17"]
[White "Nastase, Andreea-Cristina"]
[Black "Rudzinska, Michalina"]
[Result "1/2-1/2"]
[ECO "E84"]
[WhiteElo "1948"]
[BlackElo "2143"]
[Annotator "NA"]
[PlyCount "69"]
[EventDate "2019.08.02"]
[EventType "swiss"]
[EventCountry "SVK"]
[SourceTitle "playchess.com"]
[Source "ChessBase"]
[SourceQuality "1"]
[TimeControl "40/5400+30:1800+30"]

1. d4 {[%emt 0:00:00]} Nf6 {[%emt 0:00:00]} 2. c4 {[%emt 0:00:00]} g6 {[%emt 0:00:00]} 3. Nc3 {[%emt 0:00:00]} Bg7 {[%emt 0:00:00]} 4. e4 {[%emt 0:00:00]} d6 {[%emt 0:00:00]} 5. f3 {[%emt 0:00:00]} O-O {[%emt 0:00:03]} 6. Be3 {[%emt 0:01:04]} Nc6 {[%emt 0:00:09]} 7. Qd2 {[%emt 0:00:40]} a6 {[%emt 0:00:10]} 8. Nge2 {[%emt 0:04:02]} Rb8 {[%emt 0:00:14]} 9. Bh6 {[%emt 0:10:43]} b5 {[%emt 0:13:23]} 10. Bxg7 {[%emt 0:00:10]} Kxg7 {[%emt 0:00:06]} 11. cxb5 {[%emt 0:00:19]} axb5 {[%emt 0:00:05]} 12. d5 {[%emt 0:00:39]} Ne5 {[%emt 0:00:53]} 13. Nd4 {[%emt 0:00:49]} b4 {[%emt 0:00:58]} 14. Ncb5 {[%emt 0:03:37]} e6 {[%emt 0:14:58]} 15. Nc6 {[%emt 0:05:30]} Nxc6 {[%emt 0:00:11]} 16. dxc6 {[%emt 0:00:02]} Rb6 {[%emt 0:13:30]} 17. Rc1 {[%emt 0:02:14]} Nh5 {[%emt 0:01:28]} 18. g3 {[%emt 0:13:52]} f5 {[%emt 0:06:46]} 19. e5 {[%emt 0:04:00]} Ba6 {[%emt 0:11:25]} 20. Nxc7 {[%emt 0:06:13]} Qxc7 {[%emt 0:08:06]} 21. exd6 {[%emt 0:00:18]} Qa7 {[%emt 0:02:38]} 22. Bxa6 {[%emt 0:09:27]} Qxa6 {[%emt 0:03:06]} 23. d7 {[%emt 0:07:21]} Rxc6 {[%emt 0:01:27]} 24. Rxc6 {[%emt 0:00:04]} Qxc6 {[%emt 0:00:05]} 25. d8=Q {[%emt 0:00:09]} Rxd8 {[%emt 0:00:05]} 26. Qxd8 {[%emt 0:00:04]} Qxf3 {[%emt 0:01:31]} 27. Qd4+ {[%emt 0:00:25]} Nf6 {[%emt 0:01:29]} 28. Rf1 {[%emt 0:00:37]} Qg2 {[%emt 0:04:16]} 29. Qxb4 {[%emt 0:01:22]} Ne4 {[%emt 0:00:53]} 30. Qd4+ {[%emt 0:01:14]} Kf7 {[%emt 0:01:46]} 31. a4 {[%emt 0:08:18]} Qc2 {[%emt 0:02:21]} 32. Qd7+ {[%emt 0:04:23]} Kf6 {[%emt 0:00:29]} 33. Qd4+ {[%emt 0:00:35]} Kf7 {[%emt 0:00:34]} 34. Qd7+ {[%emt 0:01:37]} Kf6 {[%emt 0:00:07]} 35. Qd4+ {[%emt 0:05:49] Ke5} 1/2-1/2

[Event "EYCC Girls-U18 2019"]
[Site "Bratislava"]
[Date "2019.08.06"]
[Round "5.18"]
[White "Golub, Nikolina"]
[Black "Hryshchenko, Kamila"]
[Result "1/2-1/2"]
[ECO "A40"]
[WhiteElo "1856"]
[BlackElo "2060"]
[Annotator "NA"]
[PlyCount "88"]
[EventDate "2019.08.02"]
[EventType "swiss"]
[EventCountry "SVK"]
[SourceTitle "playchess.com"]
[Source "ChessBase"]
[SourceQuality "1"]
[TimeControl "40/5400+30:1800+30"]

1. d4 {[%emt 0:00:00]} g6 {[%emt 0:00:00]} 2. c4 {[%emt 0:00:12]} Bg7 {[%emt 0:00:00]} 3. Nf3 {[%emt 0:00:30]} Nf6 {[%emt 0:00:09]} 4. g3 {[%emt 0:00:06]} d6 {[%emt 0:00:13]} 5. Bg2 {[%emt 0:00:05]} O-O {[%emt 0:00:21]} 6. O-O {[%emt 0:00:05]} c6 {[%emt 0:00:18]} 7. Nc3 {[%emt 0:00:16]} Nbd7 {[%emt 0:00:28]} 8. Qc2 {[%emt 0:00:57]} e5 {[%emt 0:00:57]} 9. Rd1 {[%emt 0:02:42]} Qe7 {[%emt 0:03:47]} 10. dxe5 {[%emt 0:04:36]} dxe5 {[%emt 0:00:40]} 11. e4 {[%emt 0:00:48]} Nc5 {[%emt 0:02:50]} 12. b4 {[%emt 0:01:17]} Ne6 {[%emt 0:03:27]} 13. Rb1 {[%emt 0:03:18]} Nd7 {[%emt 0:05:32]} 14. c5 {[%emt 0:11:59]} Rd8 {[%emt 0:04:05]} 15. Be3 {[%emt 0:02:22]} Ndf8 {[%emt 0:05:40]} 16. Rxd8 {[%emt 0:02:21]} Nxd8 {[%emt 0:00:09]} 17. Rd1 {[%emt 0:00:49]} Bg4 {[%emt 0:01:34]} 18. h3 {[%emt 0:00:52]} Bxf3 {[%emt 0:01:33]} 19. Bxf3 {[%emt 0:00:03]} Nde6 {[%emt 0:00:17]} 20. Ne2 {[%emt 0:02:29]} h5 {[%emt 0:00:52]} 21. h4 {[%emt 0:01:23]} Rd8 {[%emt 0:03:29]} 22. Rxd8 {[%emt 0:09:28]} Qxd8 {[%emt 0:00:08]} 23. Bg2 {[%emt 0:00:24]} a5 {[%emt 0:04:13]} 24. a3 {[%emt 0:02:42]} axb4 {[%emt 0:00:20]} 25. axb4 {[%emt 0:00:02]} Qa8 {[%emt 0:01:57]} 26. Kh2 {[%emt 0:07:31]} Qa1 {[%emt 0:02:01]} 27. Qc1 {[%emt 0:00:58]} Qa2 {[%emt 0:03:47]} 28. Qd2 {[%emt 0:04:52]} Qb1 {[%emt 0:01:08]} 29. Qc3 {[%emt 0:10:30]} Nc7 {[%emt 0:09:24]} 30. Qc4 {[%emt 0:02:21]} Nfe6 {[%emt 0:06:03]} 31. Bh3 {[%emt 0:03:34]} Nd4 {[%emt 0:02:19]} 32. Nc3 {[%emt 0:07:12]} Qc2 {[%emt 0:02:18]} 33. Bf1 {[%emt 0:01:01]} Qb2 {[%emt 0:05:32]} 34. Nd1 {[%emt 0:04:03]} Qb1 {[%emt 0:00:45]} 35. Nc3 {[%emt 0:00:29]} Qa1 {[%emt 0:03:04]} 36. Bd3 {[%emt 0:05:28]} Nf3+ {[%emt 0:03:37]} 37. Kg2 {[%emt 0:00:22]} Ne1+ {[%emt 0:00:23]} 38. Kh2 {[%emt 0:00:27]} Ne6 {[%emt 0:00:55]} 39. Be2 {[%emt 0:07:19]} Nd4 {[%emt 0:02:03]} 40. b5 {[%emt 0:00:00]} Nef3+ {[%emt 0:00:00]} 41. Bxf3 {[%emt 0:02:28]} Nxf3+ {[%emt 0:13:40]} 42. Kg2 {[%emt 0:00:07]} Ne1+ {[%emt 0:00:10]} 43. Kf1 Nc2+ 44. Ke2 Ne1 1/2-1/2